[Event "*** Titled Tuesday Blitz"]
[Site "Chess.com"]
[Date "2021.04.27"]
[Round "6"]
[White "MFguimaraes"]
[Black "PawnEatingZombie"]
[Result "1-0"]
[WhiteElo "2430"]
[BlackElo "2251"]
[TimeControl "180+1"]
[EndTime "11:04:24 PDT"]
[Termination "MFguimaraes won by resignation"]

1. e4 {[%clk 0:03:00.9]} 1... c6 {[%clk 0:02:59.6]} 2. Bc4 {[%clk 0:02:57.1]}
2... d5 {[%clk 0:03:00.5]} 3. Bb3 {[%clk 0:02:57]} 3... dxe4 {[%clk 0:02:59.7]}
4. Qh5 {[%clk 0:02:53.4]} 4... g6 {[%clk 0:03:00.1]} 5. Qh4 {[%clk 0:02:53.3]}
5... Nf6 {[%clk 0:02:55]} 6. f3 {[%clk 0:02:51.8]} 6... exf3 {[%clk 0:02:44.6]}
7. Nxf3 {[%clk 0:02:52.7]} 7... Bg7 {[%clk 0:02:44.5]} 8. d4 {[%clk 0:02:52.2]}
8... Qa5+ {[%clk 0:02:30]} 9. Nc3 {[%clk 0:02:46]} 9... Qh5 {[%clk 0:02:19.9]}
10. Qxh5 {[%clk 0:02:42.4]} 10... Nxh5 {[%clk 0:02:19.5]} 11. O-O {[%clk
0:02:41.9]} 11... O-O {[%clk 0:02:19.2]} 12. Bg5 {[%clk 0:02:38.1]} 12... Nf6
{[%clk 0:02:17.7]} 13. Rae1 {[%clk 0:02:33.4]} 13... e6 {[%clk 0:01:40.7]} 14.
Ne5 {[%clk 0:02:32.2]} 14... Nd5 {[%clk 0:01:36.8]} 15. Nxd5 {[%clk 0:02:25.2]}
15... cxd5 {[%clk 0:01:35.9]} 16. Be7 {[%clk 0:02:24]} 16... Nc6 {[%clk
0:01:30]} 17. Bxf8 {[%clk 0:02:14.9]} 17... Bxe5 {[%clk 0:01:13.6]} 18. dxe5
{[%clk 0:02:08.8]} 18... Kxf8 {[%clk 0:01:12.4]} 19. c4 {[%clk 0:02:05.9]} 19...
d4 {[%clk 0:01:09.6]} 20. Ba4 {[%clk 0:02:01.3]} 20... Bd7 {[%clk 0:01:08.9]}
21. Bxc6 {[%clk 0:01:59.6]} 21... Bxc6 {[%clk 0:01:08.8]} 22. Rf4 {[%clk
0:01:59.5]} 22... Rd8 {[%clk 0:01:08.2]} 23. Ref1 {[%clk 0:01:59.5]} 23... Rd7
{[%clk 0:01:07.6]} 24. Rd1 {[%clk 0:01:53.5]} 24... d3 {[%clk 0:01:06.9]} 25.
Kf2 {[%clk 0:01:53]} 25... b5 {[%clk 0:01:04.2]} 26. b3 {[%clk 0:01:48.2]} 26...
bxc4 {[%clk 0:01:00]} 27. bxc4 {[%clk 0:01:48.8]} 27... d2 {[%clk 0:00:45.8]}
28. Ke3 {[%clk 0:01:43.2]} 28... Bxg2 {[%clk 0:00:43.2]} 29. Rxd2 {[%clk
0:01:43.3]} 29... Rc7 {[%clk 0:00:30.9]} 30. Rxg2 {[%clk 0:01:39.5]} 1-0

[Event "*** Titled Tuesday Blitz"]
[Site "Chess.com"]
[Date "2021.04.27"]
[Round "6"]
[White "BigAl"]
[Black "AsaHoffmann"]
[Result "0-1"]
[WhiteElo "2562"]
[BlackElo "2381"]
[TimeControl "180+1"]
[EndTime "11:04:30 PDT"]
[Termination "AsaHoffmann won by resignation"]

1. Nf3 {[%clk 0:03:00.9]} 1... d6 {[%clk 0:02:41.6]} 2. e4 {[%clk 0:02:59.7]}
2... Bg4 {[%clk 0:02:37.2]} 3. d3 {[%clk 0:02:57.7]} 3... c5 {[%clk 0:02:33.3]}
4. Nbd2 {[%clk 0:02:58]} 4... Nc6 {[%clk 0:02:33.1]} 5. g3 {[%clk 0:02:58.5]}
5... g6 {[%clk 0:02:32.8]} 6. Bg2 {[%clk 0:02:59.1]} 6... Bg7 {[%clk 0:02:32.8]}
7. O-O {[%clk 0:02:59.7]} 7... e6 {[%clk 0:02:33]} 8. h3 {[%clk 0:02:59]} 8...
Bxf3 {[%clk 0:02:33]} 9. Nxf3 {[%clk 0:02:59.2]} 9... Nge7 {[%clk 0:02:32.5]}
10. c3 {[%clk 0:02:59.2]} 10... O-O {[%clk 0:02:32.2]} 11. Bg5 {[%clk
0:02:44.3]} 11... h6 {[%clk 0:02:31.4]} 12. Be3 {[%clk 0:02:42.2]} 12... b6
{[%clk 0:02:30.7]} 13. Qd2 {[%clk 0:02:41.8]} 13... Kh7 {[%clk 0:02:30.7]} 14.
d4 {[%clk 0:02:40.3]} 14... cxd4 {[%clk 0:02:29.8]} 15. cxd4 {[%clk 0:02:40.4]}
15... d5 {[%clk 0:02:29.9]} 16. e5 {[%clk 0:02:39.6]} 16... Nf5 {[%clk
0:02:28.6]} 17. h4 {[%clk 0:02:30.4]} 17... Rc8 {[%clk 0:02:26.8]} 18. Bf4
{[%clk 0:02:26.9]} 18... Qe7 {[%clk 0:02:21.8]} 19. Rfc1 {[%clk 0:02:19]} 19...
Qb4 {[%clk 0:02:14.6]} 20. Qxb4 {[%clk 0:01:50.5]} 20... Nxb4 {[%clk 0:02:14.1]}
21. g4 {[%clk 0:01:41.3]} 21... Rxc1+ {[%clk 0:02:06.9]} 22. Rxc1 {[%clk
0:01:34.1]} 22... Nd3 {[%clk 0:02:06.6]} 23. gxf5 {[%clk 0:01:29.6]} 23... Nxf4
{[%clk 0:02:06.3]} 24. f6 {[%clk 0:01:29.6]} 24... Ne2+ {[%clk 0:02:05.1]} 25.
Kf1 {[%clk 0:01:26]} 25... Nxc1 {[%clk 0:02:04.8]} 26. fxg7 {[%clk 0:01:26.2]}
26... Kxg7 {[%clk 0:02:04.1]} 27. Ke1 {[%clk 0:01:25.1]} 27... Nxa2 {[%clk
0:02:03.4]} 28. Kd2 {[%clk 0:01:25.5]} 28... Nb4 {[%clk 0:02:02.9]} 29. Bf1
{[%clk 0:01:24.6]} 29... Nc6 {[%clk 0:02:01.9]} 30. Ne1 {[%clk 0:01:25.5]} 30...
Nxd4 {[%clk 0:01:53]} 31. Kc3 {[%clk 0:01:21.3]} 31... Nf5 {[%clk 0:01:49.6]}
32. Nf3 {[%clk 0:01:20.1]} 32... Rc8+ {[%clk 0:01:48.8]} 33. Kd2 {[%clk
0:01:20.3]} 33... Rc5 {[%clk 0:01:45]} 34. Bd3 {[%clk 0:01:17.5]} 34... a5
{[%clk 0:01:42.9]} 35. Bxf5 {[%clk 0:01:09]} 35... gxf5 {[%clk 0:01:40.6]} 36.
Nd4 {[%clk 0:01:07.8]} 36... Rc4 {[%clk 0:01:40]} 37. Kd3 {[%clk 0:01:07.7]}
37... Rb4 {[%clk 0:01:37]} 38. Kc3 {[%clk 0:01:05.5]} 38... b5 {[%clk
0:01:36.4]} 39. b3 {[%clk 0:01:01.6]} 39... Rxd4 {[%clk 0:01:30.5]} 40. Kxd4
{[%clk 0:01:01.9]} 40... a4 {[%clk 0:01:30.3]} 41. bxa4 {[%clk 0:01:02.4]} 41...
bxa4 {[%clk 0:01:30.3]} 42. Kc3 {[%clk 0:01:03.3]} 42... Kg6 {[%clk 0:01:30]}
0-1

[Event "*** Titled Tuesday Blitz"]
[Site "Chess.com"]
[Date "2021.04.27"]
[Round "6"]
[White "jerry_77"]
[Black "Vice64"]
[Result "0-1"]
[WhiteElo "2475"]
[BlackElo "2665"]
[TimeControl "180+1"]
[EndTime "11:04:40 PDT"]
[Termination "Vice64 won by resignation"]

1. e4 {[%clk 0:03:00.9]} 1... c5 {[%clk 0:02:59.5]} 2. Nf3 {[%clk 0:02:58]} 2...
Nc6 {[%clk 0:02:59.8]} 3. Nc3 {[%clk 0:02:55.7]} 3... d6 {[%clk 0:02:58.8]} 4.
d4 {[%clk 0:02:55.8]} 4... cxd4 {[%clk 0:02:59.2]} 5. Nxd4 {[%clk 0:02:56.7]}
5... Nf6 {[%clk 0:02:59.7]} 6. Bg5 {[%clk 0:02:56]} 6... e6 {[%clk 0:03:00.1]}
7. Qd2 {[%clk 0:02:54.9]} 7... a6 {[%clk 0:03:00.4]} 8. O-O-O {[%clk 0:02:54.6]}
8... Bd7 {[%clk 0:03:00.8]} 9. f3 {[%clk 0:02:53.6]} 9... b5 {[%clk 0:02:59]}
10. h4 {[%clk 0:02:52.8]} 10... Rc8 {[%clk 0:02:53]} 11. Nxc6 {[%clk 0:02:48.7]}
11... Bxc6 {[%clk 0:02:51.3]} 12. Kb1 {[%clk 0:02:48.4]} 12... Be7 {[%clk
0:02:46.5]} 13. g4 {[%clk 0:02:46.3]} 13... h5 {[%clk 0:02:41.4]} 14. gxh5
{[%clk 0:02:39.7]} 14... Nxh5 {[%clk 0:02:28.9]} 15. Rg1 {[%clk 0:02:33.7]}
15... Nf6 {[%clk 0:02:22.4]} 16. Bd3 {[%clk 0:02:31.5]} 16... Qc7 {[%clk
0:02:18.6]} 17. Ne2 {[%clk 0:02:30.1]} 17... e5 {[%clk 0:02:15.9]} 18. Ng3
{[%clk 0:02:29.6]} 18... Bd7 {[%clk 0:02:16.1]} 19. Nf1 {[%clk 0:02:24.9]} 19...
Be6 {[%clk 0:02:14.8]} 20. Ne3 {[%clk 0:02:23.4]} 20... Nh5 {[%clk 0:02:10.4]}
21. Nf5 {[%clk 0:02:17.3]} 21... Bxf5 {[%clk 0:02:08.5]} 22. exf5 {[%clk
0:02:18.2]} 22... Bxg5 {[%clk 0:01:55.2]} 23. Rxg5 {[%clk 0:02:14.5]} 23... d5
{[%clk 0:01:40.8]} 24. Re1 {[%clk 0:02:08.8]} 24... f6 {[%clk 0:01:39]} 25. Rg4
{[%clk 0:02:05.9]} 25... Kf8 {[%clk 0:01:36.1]} 26. a4 {[%clk 0:02:03.6]} 26...
Qc5 {[%clk 0:01:34.3]} 27. axb5 {[%clk 0:02:02.4]} 27... axb5 {[%clk 0:01:34.3]}
28. Rb4 {[%clk 0:01:48.7]} 28... Rb8 {[%clk 0:01:34.1]} 29. Rb3 {[%clk 0:01:41]}
29... Nf4 {[%clk 0:01:31.3]} 30. Qh2 {[%clk 0:01:37.3]} 30... b4 {[%clk
0:01:26.2]} 31. Rd1 {[%clk 0:01:30.5]} 31... Kf7 {[%clk 0:01:24.5]} 32. Rg1
{[%clk 0:01:23.8]} 32... Ra8 {[%clk 0:01:22.6]} 33. Qg3 {[%clk 0:01:22.3]} 33...
Rh7 {[%clk 0:01:15.6]} 34. c3 {[%clk 0:01:07.3]} 34... Nxd3 {[%clk 0:01:04.1]}
0-1

[Event "*** Titled Tuesday Blitz"]
[Site "Chess.com"]
[Date "2021.04.27"]
[Round "6"]
[White "IANOV0007"]
[Black "vovachesss"]
[Result "1-0"]
[WhiteElo "2479"]
[BlackElo "2603"]
[TimeControl "180+1"]
[EndTime "11:04:40 PDT"]
[Termination "IANOV0007 won on time"]

1. Nf3 {[%clk 0:03:00.9]} 1... d5 {[%clk 0:02:58]} 2. g3 {[%clk 0:03:00.4]} 2...
Bg4 {[%clk 0:02:54.9]} 3. Bg2 {[%clk 0:03:00.2]} 3... Nd7 {[%clk 0:02:53.4]} 4.
c4 {[%clk 0:02:59.9]} 4... c6 {[%clk 0:02:52.6]} 5. cxd5 {[%clk 0:02:58.9]} 5...
cxd5 {[%clk 0:02:52.8]} 6. Qa4 {[%clk 0:02:57.5]} 6... Bxf3 {[%clk 0:02:51.5]}
7. Bxf3 {[%clk 0:02:56.2]} 7... Nf6 {[%clk 0:02:52.4]} 8. Nc3 {[%clk 0:02:54.6]}
8... e6 {[%clk 0:02:51.9]} 9. d3 {[%clk 0:02:52.8]} 9... Bd6 {[%clk 0:02:36.6]}
10. e4 {[%clk 0:02:34]} 10... dxe4 {[%clk 0:02:32.1]} 11. dxe4 {[%clk
0:02:28.5]} 11... O-O {[%clk 0:02:31.7]} 12. O-O {[%clk 0:02:26.1]} 12... Nc5
{[%clk 0:02:18.2]} 13. Qc2 {[%clk 0:02:24.2]} 13... Be5 {[%clk 0:02:15.9]} 14.
Rd1 {[%clk 0:02:22.4]} 14... Qe7 {[%clk 0:01:36]} 15. Be3 {[%clk 0:02:17.5]}
15... Rac8 {[%clk 0:01:33.5]} 16. Rac1 {[%clk 0:02:14.2]} 16... a6 {[%clk
0:01:00.9]} 17. h3 {[%clk 0:02:10.8]} 17... Nfd7 {[%clk 0:00:48.3]} 18. b4
{[%clk 0:01:53.4]} 18... Nxe4 {[%clk 0:00:36.3]} 19. Qxe4 {[%clk 0:01:47.7]}
19... Rxc3 {[%clk 0:00:16.4]} 20. Rxc3 {[%clk 0:01:43.4]} 20... Bxc3 {[%clk
0:00:14.5]} 21. Qxb7 {[%clk 0:01:42.4]} 21... Rd8 {[%clk 0:00:12.4]} 22. Bc6
{[%clk 0:01:38.4]} 1-0

[Event "*** Titled Tuesday Blitz"]
[Site "Chess.com"]
[Date "2021.04.27"]
[Round "6"]
[White "dennisodessa"]
[Black "StockholmMissile"]
[Result "0-1"]
[WhiteElo "2435"]
[BlackElo "2603"]
[TimeControl "180+1"]
[EndTime "11:04:44 PDT"]
[Termination "StockholmMissile won by resignation"]

1. d4 {[%clk 0:02:32.3]} 1... d5 {[%clk 0:02:59.3]} 2. c4 {[%clk 0:02:32.5]}
2... c6 {[%clk 0:02:59.3]} 3. Nf3 {[%clk 0:02:32.7]} 3... Nf6 {[%clk 0:02:59.4]}
4. Nbd2 {[%clk 0:02:33.6]} 4... e6 {[%clk 0:02:56.9]} 5. e3 {[%clk 0:02:33.5]}
5... c5 {[%clk 0:02:56.3]} 6. Bd3 {[%clk 0:02:31.5]} 6... Nc6 {[%clk 0:02:55.2]}
7. O-O {[%clk 0:02:31.6]} 7... cxd4 {[%clk 0:02:54.5]} 8. exd4 {[%clk 0:02:29]}
8... Be7 {[%clk 0:02:54.1]} 9. b3 {[%clk 0:02:28.8]} 9... O-O {[%clk 0:02:53.1]}
10. Bb2 {[%clk 0:02:29]} 10... b6 {[%clk 0:02:53.3]} 11. Qe2 {[%clk 0:02:29.4]}
11... Bb7 {[%clk 0:02:52.9]} 12. Rad1 {[%clk 0:02:25.8]} 12... Qc7 {[%clk
0:02:47.7]} 13. Ne5 {[%clk 0:02:24.6]} 13... Rad8 {[%clk 0:02:44.5]} 14. cxd5
{[%clk 0:02:16]} 14... Nxd5 {[%clk 0:02:41.4]} 15. Qh5 {[%clk 0:02:11.2]} 15...
g6 {[%clk 0:02:30.5]} 16. Nxg6 {[%clk 0:02:01.7]} 16... fxg6 {[%clk 0:02:23.7]}
17. Bxg6 {[%clk 0:02:02.6]} 17... Nf6 {[%clk 0:02:22.2]} 18. Bxh7+ {[%clk
0:01:42.4]} 18... Nxh7 {[%clk 0:02:12.9]} 19. Qg6+ {[%clk 0:01:42.3]} 19... Kh8
{[%clk 0:02:13.1]} 20. d5+ {[%clk 0:01:42.4]} 20... Ne5 {[%clk 0:02:12.8]} 21.
f4 {[%clk 0:01:39.7]} 21... Bf6 {[%clk 0:01:53]} 22. fxe5 {[%clk 0:01:08.9]}
22... Bxe5 {[%clk 0:01:51.3]} 23. Rxf8+ {[%clk 0:00:53.9]} 23... Rxf8 {[%clk
0:01:49.6]} 24. Rc1 {[%clk 0:00:34.7]} 24... Qd6 {[%clk 0:01:35.1]} 25. Bxe5+
{[%clk 0:00:17.4]} 25... Qxe5 {[%clk 0:01:36]} 26. h3 {[%clk 0:00:15.9]} 0-1

[Event "*** Titled Tuesday Blitz"]
[Site "Chess.com"]
[Date "2021.04.27"]
[Round "6"]
[White "picturesquecheck"]
[Black "Zipa5"]
[Result "1-0"]
[WhiteElo "2292"]
[BlackElo "1864"]
[TimeControl "180+1"]
[EndTime "11:04:48 PDT"]
[Termination "picturesquecheck won on time"]

1. e4 {[%clk 0:02:58.5]} 1... e6 {[%clk 0:02:57]} 2. d4 {[%clk 0:02:54.9]} 2...
c5 {[%clk 0:02:53.9]} 3. Nf3 {[%clk 0:02:52.9]} 3... cxd4 {[%clk 0:02:50.4]} 4.
Nxd4 {[%clk 0:02:53.8]} 4... Nc6 {[%clk 0:02:48.8]} 5. Be2 {[%clk 0:02:52.4]}
5... Qb6 {[%clk 0:02:47.1]} 6. Nb3 {[%clk 0:02:48.1]} 6... Nf6 {[%clk 0:02:44]}
7. Nc3 {[%clk 0:02:46.1]} 7... a6 {[%clk 0:02:35.8]} 8. O-O {[%clk 0:02:44.7]}
8... Be7 {[%clk 0:02:33.4]} 9. Be3 {[%clk 0:02:43.3]} 9... Qc7 {[%clk
0:02:32.7]} 10. f4 {[%clk 0:02:42.8]} 10... d6 {[%clk 0:02:30.8]} 11. Kh1 {[%clk
0:02:41.7]} 11... b5 {[%clk 0:02:28.3]} 12. a3 {[%clk 0:02:41.6]} 12... Bb7
{[%clk 0:02:24.9]} 13. Bf3 {[%clk 0:02:38.4]} 13... O-O {[%clk 0:02:23.3]} 14.
Qd2 {[%clk 0:02:35.5]} 14... Rfd8 {[%clk 0:02:12.1]} 15. Rad1 {[%clk 0:02:33.1]}
15... b4 {[%clk 0:01:55.4]} 16. Na4 {[%clk 0:02:26.4]} 16... bxa3 {[%clk
0:01:16.3]} 17. bxa3 {[%clk 0:02:19.9]} 17... Nd7 {[%clk 0:01:12.4]} 18. Qf2
{[%clk 0:02:17.1]} 18... e5 {[%clk 0:00:55.6]} 19. Bh5 {[%clk 0:02:10.8]} 19...
Nf6 {[%clk 0:00:49.5]} 20. Bf3 {[%clk 0:02:00.4]} 20... exf4 {[%clk 0:00:32.8]}
21. Bxf4 {[%clk 0:01:57]} 21... Ne5 {[%clk 0:00:28.8]} 22. Rfe1 {[%clk
0:01:42.4]} 22... Nxf3 {[%clk 0:00:10.5]} 23. gxf3 {[%clk 0:01:41.9]} 23... Re8
{[%clk 0:00:03.8]} 24. Qb6 {[%clk 0:01:40.1]} 1-0

[Event "*** Titled Tuesday Blitz"]
[Site "Chess.com"]
[Date "2021.04.27"]
[Round "6"]
[White "Nafania1"]
[Black "Rodalquilar"]
[Result "0-1"]
[WhiteElo "2539"]
[BlackElo "2767"]
[TimeControl "180+1"]
[EndTime "11:05:01 PDT"]
[Termination "Rodalquilar won by resignation"]

1. e4 {[%clk 0:03:00.9]} 1... d5 {[%clk 0:03:00.2]} 2. exd5 {[%clk 0:03:00.4]}
2... Qxd5 {[%clk 0:03:01.1]} 3. Nc3 {[%clk 0:03:00.6]} 3... Qa5 {[%clk
0:03:01.3]} 4. d4 {[%clk 0:03:00.8]} 4... Nf6 {[%clk 0:03:01.8]} 5. Nf3 {[%clk
0:03:01.1]} 5... Bf5 {[%clk 0:03:01.8]} 6. Ne5 {[%clk 0:03:00.8]} 6... c6 {[%clk
0:03:01]} 7. Bf4 {[%clk 0:03:00.4]} 7... Nbd7 {[%clk 0:02:59.9]} 8. Nc4 {[%clk
0:02:55.8]} 8... Qd8 {[%clk 0:02:59.6]} 9. Ne3 {[%clk 0:02:56]} 9... Be6 {[%clk
0:02:58]} 10. d5 {[%clk 0:02:39.2]} 10... cxd5 {[%clk 0:02:58.2]} 11. Nexd5
{[%clk 0:02:39.2]} 11... Nxd5 {[%clk 0:02:58.5]} 12. Nxd5 {[%clk 0:02:39.5]}
12... Qa5+ {[%clk 0:02:54.7]} 13. Nc3 {[%clk 0:02:35.3]} 13... O-O-O {[%clk
0:02:38.5]} 14. Be2 {[%clk 0:02:21.1]} 14... Nb6 {[%clk 0:02:26.3]} 15. Qc1
{[%clk 0:02:17.4]} 15... g5 {[%clk 0:02:00.5]} 16. Bxg5 {[%clk 0:01:41.3]} 16...
Rg8 {[%clk 0:02:00.4]} 17. Bf4 {[%clk 0:01:41.4]} 17... Rxg2 {[%clk 0:01:51.6]}
18. Bg3 {[%clk 0:01:30.2]} 18... Bg7 {[%clk 0:01:09]} 19. Qf4 {[%clk 0:01:12.2]}
19... Bxc3+ {[%clk 0:00:56.4]} 20. bxc3 {[%clk 0:01:03.7]} 20... Qxc3+ {[%clk
0:00:57.3]} 21. Kf1 {[%clk 0:01:04.1]} 21... Rxg3 {[%clk 0:00:57.7]} 22. hxg3
{[%clk 0:00:53.1]} 22... Qxa1+ {[%clk 0:00:57.6]} 23. Kg2 {[%clk 0:00:53.5]}
23... Qd4 {[%clk 0:00:50.3]} 24. Qg5 {[%clk 0:00:42.8]} 24... Qd5+ {[%clk
0:00:49.5]} 25. Qxd5 {[%clk 0:00:41.2]} 25... Bxd5+ {[%clk 0:00:46.5]} 0-1

[Event "*** Titled Tuesday Blitz"]
[Site "Chess.com"]
[Date "2021.04.27"]
[Round "6"]
[White "Aygehovit1992"]
[Black "fabianvivasz"]
[Result "1-0"]
[WhiteElo "2625"]
[BlackElo "2368"]
[TimeControl "180+1"]
[EndTime "11:05:04 PDT"]
[Termination "Aygehovit1992 won on time"]

1. e4 {[%clk 0:03:00.9]} 1... e5 {[%clk 0:02:58.1]} 2. Nf3 {[%clk 0:02:59.9]}
2... Nc6 {[%clk 0:02:56.6]} 3. Bb5 {[%clk 0:02:59.8]} 3... f5 {[%clk 0:02:56]}
4. d3 {[%clk 0:02:58.6]} 4... fxe4 {[%clk 0:02:55.8]} 5. dxe4 {[%clk 0:02:59.5]}
5... Nf6 {[%clk 0:02:56.4]} 6. Nc3 {[%clk 0:02:59.3]} 6... Bb4 {[%clk
0:02:56.4]} 7. Bc4 {[%clk 0:02:58.8]} 7... Bxc3+ {[%clk 0:02:43]} 8. bxc3 {[%clk
0:02:59.7]} 8... d6 {[%clk 0:02:43.5]} 9. O-O {[%clk 0:02:56.6]} 9... Qe7 {[%clk
0:02:40.1]} 10. Nh4 {[%clk 0:02:52.6]} 10... g6 {[%clk 0:01:56.2]} 11. Bg5
{[%clk 0:02:49.2]} 11... Be6 {[%clk 0:01:50.6]} 12. Bd5 {[%clk 0:02:17.7]} 12...
Qf7 {[%clk 0:01:35.2]} 13. Rb1 {[%clk 0:02:12]} 13... Nxd5 {[%clk 0:01:29.4]}
14. exd5 {[%clk 0:02:11.9]} 14... Bxd5 {[%clk 0:01:30.3]} 15. Rxb7 {[%clk
0:02:12.2]} 15... O-O {[%clk 0:01:14.9]} 16. Rxc7 {[%clk 0:02:11]} 16... Qxc7
{[%clk 0:01:11.5]} 17. Qxd5+ {[%clk 0:02:11.5]} 17... Kg7 {[%clk 0:00:46.5]} 18.
Rd1 {[%clk 0:02:10.9]} 18... Qf7 {[%clk 0:00:32.8]} 19. Qxf7+ {[%clk 0:02:07.6]}
19... Rxf7 {[%clk 0:00:29.8]} 20. Rxd6 {[%clk 0:02:08.5]} 20... Rc8 {[%clk
0:00:28]} 21. Nf3 {[%clk 0:01:36.4]} 21... h6 {[%clk 0:00:25.1]} 22. Be3 {[%clk
0:01:36.4]} 22... Rfc7 {[%clk 0:00:08.3]} 23. h4 {[%clk 0:01:34.8]} 23... Rd8
{[%clk 0:00:06.7]} 24. Re6 {[%clk 0:01:25.6]} 24... Rd1+ {[%clk 0:00:01.6]} 25.
Kh2 {[%clk 0:01:25]} 25... Rd5 {[%clk 0:00:02.1]} 26. h5 {[%clk 0:01:23.5]} 1-0

[Event "*** Titled Tuesday Blitz"]
[Site "Chess.com"]
[Date "2021.04.27"]
[Round "6"]
[White "FeketeBarika"]
[Black "Apocalyps999"]
[Result "0-1"]
[WhiteElo "2252"]
[BlackElo "2448"]
[TimeControl "180+1"]
[EndTime "11:05:09 PDT"]
[Termination "Apocalyps999 won by resignation"]

1. Nf3 {[%clk 0:03:00.9]} 1... d5 {[%clk 0:02:55.7]} 2. g3 {[%clk 0:03:01.8]}
2... Nc6 {[%clk 0:02:54.5]} 3. Bg2 {[%clk 0:03:02.7]} 3... e5 {[%clk 0:02:54.6]}
4. O-O {[%clk 0:03:03.6]} 4... Nf6 {[%clk 0:02:54.9]} 5. c4 {[%clk 0:03:04.5]}
5... Be6 {[%clk 0:02:53.7]} 6. cxd5 {[%clk 0:03:03]} 6... Nxd5 {[%clk
0:02:54.6]} 7. Nc3 {[%clk 0:03:02.8]} 7... Be7 {[%clk 0:02:54.4]} 8. d3 {[%clk
0:02:59.3]} 8... O-O {[%clk 0:02:53.8]} 9. Bd2 {[%clk 0:02:57.7]} 9... Qd7
{[%clk 0:02:50.7]} 10. Rc1 {[%clk 0:02:57.1]} 10... Rad8 {[%clk 0:02:49.2]} 11.
a3 {[%clk 0:02:56.2]} 11... Nb6 {[%clk 0:02:34.7]} 12. b4 {[%clk 0:02:54]} 12...
Bh3 {[%clk 0:02:34]} 13. Bxh3 {[%clk 0:02:39.3]} 13... Qxh3 {[%clk 0:02:34.9]}
14. Ne4 {[%clk 0:02:39.2]} 14... Nd5 {[%clk 0:02:23.4]} 15. Qb3 {[%clk
0:02:36.5]} 15... Nd4 {[%clk 0:02:19.9]} 16. Nxd4 {[%clk 0:02:35.5]} 16... exd4
{[%clk 0:02:20.8]} 17. Ng5 {[%clk 0:02:32.3]} 17... Bxg5 {[%clk 0:02:18.9]} 18.
Bxg5 {[%clk 0:02:31.6]} 18... Rd6 {[%clk 0:02:19.1]} 19. e4 {[%clk 0:02:27.5]}
19... dxe3 {[%clk 0:02:10.9]} 20. fxe3 {[%clk 0:02:28.4]} 20... c6 {[%clk
0:02:03]} 21. Bf4 {[%clk 0:02:26.4]} 21... Re6 {[%clk 0:00:55.4]} 22. e4 {[%clk
0:02:25]} 22... Nf6 {[%clk 0:00:54.4]} 23. Bg5 {[%clk 0:02:21.2]} 23... Ng4
{[%clk 0:00:54.2]} 24. Qc2 {[%clk 0:02:20.9]} 24... Rg6 {[%clk 0:00:53.2]} 25.
Bf4 {[%clk 0:02:19.9]} 25... Rd8 {[%clk 0:00:50.4]} 26. Rcd1 {[%clk 0:02:18.6]}
26... h5 {[%clk 0:00:50]} 27. Qg2 {[%clk 0:02:18.1]} 27... Qxg2+ {[%clk
0:00:49.3]} 28. Kxg2 {[%clk 0:02:19]} 28... h4 {[%clk 0:00:49.9]} 29. d4 {[%clk
0:02:15]} 29... hxg3 {[%clk 0:00:48.7]} 30. hxg3 {[%clk 0:02:06.5]} 30... Re6
{[%clk 0:00:48.5]} 31. e5 {[%clk 0:02:04.1]} 31... f6 {[%clk 0:00:48.6]} 32.
exf6 {[%clk 0:02:02.1]} 32... Nxf6 {[%clk 0:00:47.8]} 33. Be5 {[%clk 0:02:02.3]}
33... Nd5 {[%clk 0:00:47.6]} 34. Rf3 {[%clk 0:01:59.1]} 34... Ne7 {[%clk
0:00:36.9]} 35. Rdf1 {[%clk 0:01:58.6]} 35... Ng6 {[%clk 0:00:31.2]} 36. Rf5
{[%clk 0:01:54.4]} 36... Nxe5 {[%clk 0:00:27.2]} 37. dxe5 {[%clk 0:01:55.3]}
37... Rde8 {[%clk 0:00:26.9]} 38. Re1 {[%clk 0:01:54.9]} 38... g6 {[%clk
0:00:26.8]} 39. Rg5 {[%clk 0:01:54.2]} 39... Kg7 {[%clk 0:00:27.3]} 40. Kf3
{[%clk 0:01:53.5]} 40... Rd8 {[%clk 0:00:27.1]} 41. Ke4 {[%clk 0:01:52.1]} 41...
Rd5 {[%clk 0:00:26.4]} 42. Re3 {[%clk 0:01:49.7]} 42... Kh6 {[%clk 0:00:26]} 43.
Kf4 {[%clk 0:01:48.2]} 43... Rd4+ {[%clk 0:00:26.1]} 44. Re4 {[%clk 0:01:47.3]}
44... Rxe4+ {[%clk 0:00:26.1]} 45. Kxe4 {[%clk 0:01:48.2]} 45... Kxg5 {[%clk
0:00:26.9]} 0-1

[Event "*** Titled Tuesday Blitz"]
[Site "Chess.com"]
[Date "2021.04.27"]
[Round "6"]
[White "masteryoungK"]
[Black "mbojan"]
[Result "0-1"]
[WhiteElo "2433"]
[BlackElo "2641"]
[TimeControl "180+1"]
[EndTime "11:05:11 PDT"]
[Termination "mbojan won by resignation"]

1. e4 {[%clk 0:03:00.9]} 1... g6 {[%clk 0:03:00]} 2. d4 {[%clk 0:02:59.9]} 2...
Bg7 {[%clk 0:03:00.6]} 3. Nc3 {[%clk 0:03:00.6]} 3... d6 {[%clk 0:03:01]} 4. f4
{[%clk 0:03:00.8]} 4... a6 {[%clk 0:03:01.6]} 5. Nf3 {[%clk 0:02:57.3]} 5... b5
{[%clk 0:03:01.8]} 6. Bd3 {[%clk 0:02:56.9]} 6... Nd7 {[%clk 0:03:01.8]} 7. e5
{[%clk 0:02:56.4]} 7... c5 {[%clk 0:03:01.9]} 8. Be4 {[%clk 0:02:54.6]} 8... Rb8
{[%clk 0:03:01.6]} 9. exd6 {[%clk 0:02:44.8]} 9... Ngf6 {[%clk 0:02:57.4]} 10.
dxc5 {[%clk 0:02:40.2]} 10... Nxe4 {[%clk 0:02:44.5]} 11. Nxe4 {[%clk
0:02:39.9]} 11... Bb7 {[%clk 0:02:45]} 12. Qe2 {[%clk 0:02:32.6]} 12... O-O
{[%clk 0:02:41.5]} 13. O-O {[%clk 0:02:15.4]} 13... Bxe4 {[%clk 0:02:40.2]} 14.
Qxe4 {[%clk 0:02:15.4]} 14... exd6 {[%clk 0:02:25.2]} 15. cxd6 {[%clk
0:02:14.8]} 15... Qb6+ {[%clk 0:02:24.3]} 16. Be3 {[%clk 0:02:13.3]} 16... Qxd6
{[%clk 0:02:24.4]} 17. Rad1 {[%clk 0:02:13]} 17... Qc7 {[%clk 0:02:24.7]} 18. c3
{[%clk 0:02:06.1]} 18... Rfe8 {[%clk 0:02:24.4]} 19. Qd3 {[%clk 0:02:06.5]}
19... Nc5 {[%clk 0:02:05.9]} 20. Bxc5 {[%clk 0:02:06.6]} 20... Qxc5+ {[%clk
0:02:06.8]} 21. Kh1 {[%clk 0:02:07.2]} 21... a5 {[%clk 0:02:01.2]} 22. a3 {[%clk
0:01:59.3]} 22... b4 {[%clk 0:01:58.5]} 23. axb4 {[%clk 0:02:00.2]} 23... axb4
{[%clk 0:01:59.3]} 24. Nd4 {[%clk 0:01:32.8]} 24... bxc3 {[%clk 0:01:57.8]} 25.
bxc3 {[%clk 0:01:33.7]} 25... Rbc8 {[%clk 0:01:58.1]} 26. f5 {[%clk 0:01:19.6]}
26... Qxc3 {[%clk 0:01:53.7]} 27. Qxc3 {[%clk 0:01:17.3]} 27... Rxc3 {[%clk
0:01:54.6]} 28. f6 {[%clk 0:01:17.7]} 28... Bf8 {[%clk 0:01:54.6]} 29. Rde1
{[%clk 0:00:57.1]} 29... Rd8 {[%clk 0:01:50.6]} 30. Nf3 {[%clk 0:00:56.2]} 30...
Rc6 {[%clk 0:01:48]} 31. Ng5 {[%clk 0:00:52.1]} 31... h6 {[%clk 0:01:44.7]} 32.
Ne4 {[%clk 0:00:50.3]} 32... Re8 {[%clk 0:01:44.4]} 33. Re3 {[%clk 0:00:31]}
33... Rce6 {[%clk 0:01:37.6]} 34. Rfe1 {[%clk 0:00:31.3]} 34... Bb4 {[%clk
0:01:36.3]} 35. R1e2 {[%clk 0:00:28.4]} 35... Bc5 {[%clk 0:01:36.7]} 0-1